[Event "Early-Titled-Tuesday-Blitz-April-16-2024"]
[Site "Chess.com"]
[Date "2024.04.16"]
[Round "4"]
[White "Let_it_be_1"]
[Black "a-z30"]
[Result "1-0"]
[WhiteElo "2594"]
[BlackElo "2389"]
[TimeControl "180+1"]
[EndTime "8:38:33 PDT"]
[Termination "Let_it_be_1 won on time"]

1. e4 {[%clk 0:03:00.9]} 1... d6 {[%clk 0:02:59.5]} 2. d4 {[%clk 0:03:00.7]}
2... Nf6 {[%clk 0:02:59.6]} 3. Nc3 {[%clk 0:03:01.4]} 3... g6 {[%clk 0:02:59.7]}
4. f4 {[%clk 0:03:01.6]} 4... Bg7 {[%clk 0:02:59.2]} 5. Nf3 {[%clk 0:03:02.2]}
5... O-O {[%clk 0:02:55.1]} 6. Be3 {[%clk 0:03:02.4]} 6... b6 {[%clk 0:02:54]}
7. Bc4 {[%clk 0:03:01.8]} 7... Bb7 {[%clk 0:02:51.3]} 8. e5 {[%clk 0:03:02]}
8... Ng4 {[%clk 0:02:47.9]} 9. Bg1 {[%clk 0:03:01.9]} 9... c5 {[%clk 0:02:47.4]}
10. Qe2 {[%clk 0:02:55]} 10... cxd4 {[%clk 0:02:39]} 11. Bxd4 {[%clk 0:02:54.4]}
11... Nc6 {[%clk 0:02:33.2]} 12. O-O-O {[%clk 0:02:53.7]} 12... Qc8 {[%clk
0:01:59.4]} 13. Bd5 {[%clk 0:02:13.5]} 13... dxe5 {[%clk 0:01:31.6]} 14. fxe5
{[%clk 0:02:06.3]} 14... Nxd4 {[%clk 0:01:18.9]} 15. Rxd4 {[%clk 0:02:03.8]}
15... Nh6 {[%clk 0:01:04.5]} 16. g4 {[%clk 0:01:54.7]} 16... e6 {[%clk
0:00:25.6]} 17. Bxb7 {[%clk 0:01:41.3]} 17... Qxb7 {[%clk 0:00:26.5]} 18. Rhd1
{[%clk 0:01:41.5]} 18... Rfc8 {[%clk 0:00:19.5]} 19. Ne4 {[%clk 0:01:32.6]}
19... Qc6 {[%clk 0:00:08.5]} 20. Rd6 {[%clk 0:01:21]} 20... Qa4 {[%clk 0:00:07]}
21. Kb1 {[%clk 0:00:56.5]} 21... Nxg4 {[%clk 0:00:05.7]} 22. R6d4 {[%clk
0:00:54.2]} 22... Qc6 {[%clk 0:00:04.9]} 23. Nd6 {[%clk 0:00:53.9]} 1-0

[Event "Early-Titled-Tuesday-Blitz-April-16-2024"]
[Site "Chess.com"]
[Date "2024.04.16"]
[Round "4"]
[White "MrChampion_Coach"]
[Black "H3nriqueTV"]
[Result "1-0"]
[WhiteElo "2570"]
[BlackElo "2303"]
[TimeControl "180+1"]
[EndTime "8:38:40 PDT"]
[Termination "MrChampion_Coach won by resignation"]

1. e4 {[%clk 0:03:00.9]} 1... c5 {[%clk 0:02:59.1]} 2. Nf3 {[%clk 0:03:00.1]}
2... d6 {[%clk 0:02:58.2]} 3. d4 {[%clk 0:02:59]} 3... cxd4 {[%clk 0:02:59.1]}
4. Nxd4 {[%clk 0:02:59.8]} 4... Nf6 {[%clk 0:02:59.9]} 5. Nc3 {[%clk 0:02:59.5]}
5... Nc6 {[%clk 0:03:00.2]} 6. Bg5 {[%clk 0:02:55.3]} 6... e6 {[%clk 0:03:00]}
7. Qd2 {[%clk 0:02:54.9]} 7... a6 {[%clk 0:03:00.7]} 8. O-O-O {[%clk 0:02:54.7]}
8... h6 {[%clk 0:03:01.4]} 9. Be3 {[%clk 0:02:54.1]} 9... Bd7 {[%clk 0:02:56.1]}
10. f3 {[%clk 0:02:53]} 10... Rc8 {[%clk 0:02:53.1]} 11. Kb1 {[%clk 0:02:52.4]}
11... b5 {[%clk 0:02:51.4]} 12. Nxc6 {[%clk 0:02:52.2]} 12... Bxc6 {[%clk
0:02:51.5]} 13. Ne2 {[%clk 0:02:52.5]} 13... Qc7 {[%clk 0:02:46.4]} 14. g4
{[%clk 0:02:48.8]} 14... d5 {[%clk 0:02:39.2]} 15. e5 {[%clk 0:02:48.8]} 15...
Nd7 {[%clk 0:02:37.4]} 16. f4 {[%clk 0:02:49]} 16... Bc5 {[%clk 0:02:34.9]} 17.
Nd4 {[%clk 0:02:46.5]} 17... Bb7 {[%clk 0:02:35.1]} 18. Rg1 {[%clk 0:02:10.2]}
18... g5 {[%clk 0:02:02.6]} 19. f5 {[%clk 0:01:38.8]} 19... Nxe5 {[%clk
0:02:00.8]} 20. fxe6 {[%clk 0:01:39]} 20... Bxd4 {[%clk 0:01:54.8]} 21. Bxd4
{[%clk 0:01:39]} 21... Nf3 {[%clk 0:01:50.2]} 22. exf7+ {[%clk 0:01:38.1]} 22...
Kxf7 {[%clk 0:01:49.2]} 23. Qf2 {[%clk 0:01:37.5]} 23... Qf4 {[%clk 0:00:49.3]}
24. Bxh8 {[%clk 0:01:30.4]} 24... Nxg1 {[%clk 0:00:49.3]} 25. Qxg1 {[%clk
0:01:24.7]} 25... Rxh8 {[%clk 0:00:49.3]} 26. Bxb5 {[%clk 0:01:19]} 26... Kg7
{[%clk 0:00:46]} 27. Rf1 {[%clk 0:01:10.8]} 27... Qd2 {[%clk 0:00:24.1]} 28. Bd3
{[%clk 0:01:07.5]} 28... Re8 {[%clk 0:00:21.7]} 29. a3 {[%clk 0:01:00.1]} 29...
Re3 {[%clk 0:00:16.8]} 30. Rd1 {[%clk 0:00:56.6]} 30... Qa5 {[%clk 0:00:15.4]}
31. Qxe3 {[%clk 0:00:56.6]} 1-0

[Event "Early-Titled-Tuesday-Blitz-April-16-2024"]
[Site "Chess.com"]
[Date "2024.04.16"]
[Round "4"]
[White "Nitzan_Steinberg"]
[Black "Vahe_Danielyan"]
[Result "1-0"]
[WhiteElo "2898"]
[BlackElo "2607"]
[TimeControl "180+1"]
[EndTime "8:38:42 PDT"]
[Termination "Nitzan_Steinberg won by resignation"]

1. e4 {[%clk 0:03:00.9]} 1... c5 {[%clk 0:02:54.6]} 2. Nf3 {[%clk 0:03:01.1]}
2... d6 {[%clk 0:02:54.4]} 3. d4 {[%clk 0:02:58.1]} 3... cxd4 {[%clk 0:02:55.3]}
4. Nxd4 {[%clk 0:02:58.8]} 4... Nf6 {[%clk 0:02:55.4]} 5. Nc3 {[%clk 0:02:59.5]}
5... a6 {[%clk 0:02:56.1]} 6. h4 {[%clk 0:02:58]} 6... Nc6 {[%clk 0:02:45.5]} 7.
Be3 {[%clk 0:02:57.6]} 7... e5 {[%clk 0:02:38.3]} 8. Nb3 {[%clk 0:02:52]} 8...
Be6 {[%clk 0:02:33.4]} 9. Nd5 {[%clk 0:02:42.5]} 9... Bxd5 {[%clk 0:02:20]} 10.
exd5 {[%clk 0:02:42.4]} 10... Ne7 {[%clk 0:02:20.9]} 11. c4 {[%clk 0:02:15.6]}
11... b5 {[%clk 0:02:18.6]} 12. cxb5 {[%clk 0:02:12.5]} 12... Nexd5 {[%clk
0:02:17.5]} 13. bxa6 {[%clk 0:02:11.3]} 13... Nxe3 {[%clk 0:02:04.3]} 14. Bb5+
{[%clk 0:02:10.4]} 14... Ke7 {[%clk 0:02:04.8]} 15. fxe3 {[%clk 0:02:10.4]}
15... Qb6 {[%clk 0:02:02.5]} 16. Qd3 {[%clk 0:02:04.5]} 16... g6 {[%clk
0:01:58.7]} 17. Rc1 {[%clk 0:01:49.1]} 17... Bh6 {[%clk 0:01:42.7]} 18. Rc6
{[%clk 0:01:48.2]} 18... Qxe3+ {[%clk 0:01:42.9]} 19. Qxe3 {[%clk 0:01:48.4]}
19... Bxe3 {[%clk 0:01:43.8]} 20. Rc7+ {[%clk 0:01:39.5]} 20... Ke6 {[%clk
0:01:27.9]} 21. Ke2 {[%clk 0:01:34.6]} 21... Ba7 {[%clk 0:01:17]} 22. Rf1 {[%clk
0:01:19.3]} 22... Rhc8 {[%clk 0:00:50.6]} 23. Rfc1 {[%clk 0:00:55.7]} 23... Rxc7
{[%clk 0:00:11.1]} 24. Rxc7 {[%clk 0:00:56.6]} 24... d5 {[%clk 0:00:11.5]} 25.
Bc6 {[%clk 0:00:49.1]} 25... Bb6 {[%clk 0:00:11.3]} 26. Bxa8 {[%clk 0:00:49.1]}
26... Bxc7 {[%clk 0:00:09.6]} 27. a7 {[%clk 0:00:49.6]} 1-0

[Event "Early-Titled-Tuesday-Blitz-April-16-2024"]
[Site "Chess.com"]
[Date "2024.04.16"]
[Round "4"]
[White "Kiborg95"]
[Black "NovoselovRoman"]
[Result "1-0"]
[WhiteElo "2853"]
[BlackElo "2594"]
[TimeControl "180+1"]
[EndTime "8:38:44 PDT"]
[Termination "Kiborg95 won by resignation"]

1. e4 {[%clk 0:02:56.5]} 1... c5 {[%clk 0:02:59.8]} 2. Nc3 {[%clk 0:02:56.7]}
2... d6 {[%clk 0:02:59.1]} 3. f4 {[%clk 0:02:56.5]} 3... Nc6 {[%clk 0:02:57.9]}
4. Nf3 {[%clk 0:02:57]} 4... g6 {[%clk 0:02:58.5]} 5. Bb5 {[%clk 0:02:57.6]}
5... Bg7 {[%clk 0:02:57.9]} 6. d3 {[%clk 0:02:57.4]} 6... e6 {[%clk 0:02:57]} 7.
Bxc6+ {[%clk 0:02:57.7]} 7... bxc6 {[%clk 0:02:57]} 8. O-O {[%clk 0:02:58.3]}
8... Ne7 {[%clk 0:02:57.3]} 9. Qe1 {[%clk 0:02:58.9]} 9... O-O {[%clk
0:02:57.5]} 10. e5 {[%clk 0:02:56.6]} 10... d5 {[%clk 0:02:47.6]} 11. b3 {[%clk
0:02:56.5]} 11... c4 {[%clk 0:02:43.9]} 12. Na4 {[%clk 0:02:53.9]} 12... cxd3
{[%clk 0:02:42]} 13. cxd3 {[%clk 0:02:54.8]} 13... f6 {[%clk 0:02:40]} 14. Ba3
{[%clk 0:02:42.8]} 14... fxe5 {[%clk 0:02:23.4]} 15. Nxe5 {[%clk 0:02:43.7]}
15... Ba6 {[%clk 0:02:23]} 16. Nc5 {[%clk 0:02:41.4]} 16... Bc8 {[%clk
0:02:23.1]} 17. Rc1 {[%clk 0:02:37]} 17... g5 {[%clk 0:02:14.1]} 18. fxg5 {[%clk
0:02:25.8]} 18... Rxf1+ {[%clk 0:02:13.8]} 19. Kxf1 {[%clk 0:02:26.7]} 19... Nf5
{[%clk 0:02:13.6]} 20. Nf3 {[%clk 0:02:15.4]} 20... e5 {[%clk 0:02:05.5]} 21.
Kg1 {[%clk 0:02:10.6]} 21... Qe8 {[%clk 0:01:42.3]} 22. Bb2 {[%clk 0:02:04.2]}
22... d4 {[%clk 0:01:41.3]} 23. Ne4 {[%clk 0:01:57]} 23... Ba6 {[%clk 0:01:08]}
24. Nf6+ {[%clk 0:01:52.6]} 24... Bxf6 {[%clk 0:01:08]} 25. gxf6 {[%clk
0:01:53.5]} 25... Qg6 {[%clk 0:00:57.4]} 26. Nxe5 {[%clk 0:01:43.6]} 26... Qg5
{[%clk 0:00:56.3]} 27. f7+ {[%clk 0:01:25.9]} 27... Kg7 {[%clk 0:00:49.2]} 28.
Nf3 {[%clk 0:01:26.3]} 28... Qf6 {[%clk 0:00:45.3]} 29. Qe8 {[%clk 0:01:13.8]}
29... Rd8 {[%clk 0:00:12.9]} 30. Ba3 {[%clk 0:01:12.6]} 30... Nd6 {[%clk
0:00:09.4]} 31. Bxd6 {[%clk 0:01:02.2]} 31... Rxd6 {[%clk 0:00:07.5]} 32. Qg8+
{[%clk 0:01:01.4]} 32... Kh6 {[%clk 0:00:07.8]} 33. f8=Q+ {[%clk 0:01:02.3]} 1-0

[Event "Early-Titled-Tuesday-Blitz-April-16-2024"]
[Site "Chess.com"]
[Date "2024.04.16"]
[Round "4"]
[White "ilya2700"]
[Black "kacperkarwowski"]
[Result "0-1"]
[WhiteElo "2312"]
[BlackElo "2518"]
[TimeControl "180+1"]
[EndTime "8:38:47 PDT"]
[Termination "kacperkarwowski won on time"]

1. e4 {[%clk 0:00:37.9]} 1... e5 {[%clk 0:02:51.3]} 2. Nf3 {[%clk 0:00:37.9]}
2... Nf6 {[%clk 0:02:51.2]} 3. Nc3 {[%clk 0:00:37.7]} 3... Nc6 {[%clk 0:02:50]}
4. Bc4 {[%clk 0:00:38.1]} 4... Bc5 {[%clk 0:02:49.1]} 5. d3 {[%clk 0:00:38.6]}
5... h6 {[%clk 0:02:49.2]} 6. Be3 {[%clk 0:00:38.3]} 6... d6 {[%clk 0:02:49]} 7.
h3 {[%clk 0:00:37.7]} 7... O-O {[%clk 0:02:48.3]} 8. O-O {[%clk 0:00:36.9]} 8...
Be6 {[%clk 0:02:48.3]} 9. Bb3 {[%clk 0:00:36.7]} 9... Bb6 {[%clk 0:02:46.2]} 10.
Qd2 {[%clk 0:00:36.7]} 10... Kh8 {[%clk 0:02:25]} 11. Bxh6 {[%clk 0:00:33]}
11... gxh6 {[%clk 0:02:25.3]} 12. Qxh6+ {[%clk 0:00:33.9]} 12... Nh7 {[%clk
0:02:25.7]} 13. Bxe6 {[%clk 0:00:20.3]} 13... fxe6 {[%clk 0:02:24.7]} 14. Qxe6
{[%clk 0:00:20.5]} 14... Qf6 {[%clk 0:02:21.8]} 15. Qxf6+ {[%clk 0:00:19.4]}
15... Rxf6 {[%clk 0:02:22.7]} 16. Nd5 {[%clk 0:00:19.7]} 16... Rf7 {[%clk
0:02:23.1]} 17. c3 {[%clk 0:00:17.9]} 17... Ne7 {[%clk 0:02:22.2]} 18. Nxb6
{[%clk 0:00:15.3]} 18... axb6 {[%clk 0:02:23.1]} 19. d4 {[%clk 0:00:16.2]} 19...
Ng6 {[%clk 0:02:23]} 20. Rad1 {[%clk 0:00:15.1]} 20... Re8 {[%clk 0:02:20.7]}
21. dxe5 {[%clk 0:00:13.1]} 21... Nxe5 {[%clk 0:02:20.9]} 22. Nxe5 {[%clk
0:00:11.8]} 22... Rxe5 {[%clk 0:02:21.8]} 23. f3 {[%clk 0:00:12]} 23... Ra5
{[%clk 0:02:18.5]} 24. a3 {[%clk 0:00:11.8]} 24... Rb5 {[%clk 0:02:18.2]} 25. b4
{[%clk 0:00:11.5]} 25... Rg5 {[%clk 0:02:17.8]} 26. f4 {[%clk 0:00:11.1]} 26...
Rg3 {[%clk 0:02:17.4]} 27. Rc1 {[%clk 0:00:08.1]} 27... Rfg7 {[%clk 0:02:15.6]}
28. Rf2 {[%clk 0:00:07.8]} 28... Nf6 {[%clk 0:02:13.4]} 29. e5 {[%clk 0:00:08]}
29... Ne4 {[%clk 0:02:09.6]} 30. Rfc2 {[%clk 0:00:06.3]} 30... Rxh3 {[%clk
0:02:06.4]} 31. exd6 {[%clk 0:00:04]} 31... Nxd6 {[%clk 0:02:06.1]} 32. Re1
{[%clk 0:00:03.9]} 32... Rhg3 {[%clk 0:02:03.9]} 33. c4 {[%clk 0:00:03.4]} 33...
Nf5 {[%clk 0:01:56.5]} 34. c5 {[%clk 0:00:02]} 34... Nd4 {[%clk 0:01:55.2]} 35.
Rd2 {[%clk 0:00:01.6]} 35... Nf3+ {[%clk 0:01:55.4]} 36. Kf2 {[%clk 0:00:02.5]}
36... Nxd2 {[%clk 0:01:48.6]} 37. cxb6 {[%clk 0:00:02.3]} 37... Rxg2+ {[%clk
0:01:47.3]} 38. Ke3 {[%clk 0:00:03.2]} 38... Nc4+ {[%clk 0:01:46.4]} 39. Kd4
{[%clk 0:00:03.2]} 39... Nxb6 {[%clk 0:01:46.2]} 40. Kc5 {[%clk 0:00:03.5]}
40... Rf2 {[%clk 0:01:39.8]} 41. a4 {[%clk 0:00:01.3]} 41... Rxf4 {[%clk
0:01:38.4]} 42. a5 {[%clk 0:00:02]} 42... Rg5+ {[%clk 0:01:36.6]} 0-1

[Event "Early-Titled-Tuesday-Blitz-April-16-2024"]
[Site "Chess.com"]
[Date "2024.04.16"]
[Round "4"]
[White "Nimrod_Veinberg"]
[Black "TigrVShlyape"]
[Result "1/2-1/2"]
[WhiteElo "2709"]
[BlackElo "2939"]
[TimeControl "180+1"]
[EndTime "8:38:49 PDT"]
[Termination "Game drawn by repetition"]

1. e4 {[%clk 0:02:48.6]} 1... e5 {[%clk 0:02:59.6]} 2. Nf3 {[%clk 0:02:46.7]}
2... Nc6 {[%clk 0:02:59.1]} 3. Bb5 {[%clk 0:02:45.8]} 3... Nf6 {[%clk
0:02:55.7]} 4. O-O {[%clk 0:02:27.5]} 4... Nxe4 {[%clk 0:02:48.1]} 5. Re1 {[%clk
0:02:25.6]} 5... Nd6 {[%clk 0:02:48.4]} 6. Nxe5 {[%clk 0:02:25.5]} 6... Be7
{[%clk 0:02:48.4]} 7. Bf1 {[%clk 0:02:24.2]} 7... Nxe5 {[%clk 0:02:45.6]} 8.
Rxe5 {[%clk 0:02:22.5]} 8... O-O {[%clk 0:02:46.2]} 9. Nc3 {[%clk 0:02:19.4]}
9... Bf6 {[%clk 0:02:45.7]} 10. Re1 {[%clk 0:02:18.4]} 10... b6 {[%clk
0:02:45.3]} 11. Nd5 {[%clk 0:02:17.8]} 11... Bb7 {[%clk 0:02:45.7]} 12. Nxf6+
{[%clk 0:02:17.1]} 12... Qxf6 {[%clk 0:02:46]} 13. d4 {[%clk 0:02:11.2]} 13...
Rfe8 {[%clk 0:02:39.4]} 14. c3 {[%clk 0:02:09.9]} 14... Re6 {[%clk 0:02:37.2]}
15. Rxe6 {[%clk 0:01:55.8]} 15... fxe6 {[%clk 0:02:19]} 16. f3 {[%clk
0:01:38.9]} 16... a5 {[%clk 0:02:17.4]} 17. Qe1 {[%clk 0:01:26.6]} 17... Rf8
{[%clk 0:02:10.8]} 18. Be3 {[%clk 0:01:17.8]} 18... Qg6 {[%clk 0:02:05]} 19. Qg3
{[%clk 0:01:13.9]} 19... Qc2 {[%clk 0:02:01.8]} 20. Qf2 {[%clk 0:01:13.1]} 20...
Qg6 {[%clk 0:01:55.1]} 21. Qg3 {[%clk 0:01:09.6]} 21... Qc2 {[%clk 0:01:35.8]}
22. Qf2 {[%clk 0:01:09.3]} 22... Qf5 {[%clk 0:01:13.8]} 23. Rd1 {[%clk
0:01:08.5]} 23... a4 {[%clk 0:01:10.2]} 24. Bd3 {[%clk 0:01:03]} 24... Qf6
{[%clk 0:01:05.9]} 25. Qg3 {[%clk 0:00:57.6]} 25... h6 {[%clk 0:01:02.9]} 26. a3
{[%clk 0:00:54.3]} 26... Bd5 {[%clk 0:01:02.2]} 27. Re1 {[%clk 0:00:53.3]} 27...
Kh8 {[%clk 0:00:54.7]} 28. Bc1 {[%clk 0:00:51]} 28... Kg8 {[%clk 0:00:49.2]} 29.
h4 {[%clk 0:00:39.8]} 29... b5 {[%clk 0:00:45]} 30. h5 {[%clk 0:00:28.8]} 30...
Kh8 {[%clk 0:00:36.8]} 31. Qg4 {[%clk 0:00:24]} 31... Kg8 {[%clk 0:00:36.3]} 32.
Qg3 {[%clk 0:00:24.1]} 32... Kh8 {[%clk 0:00:36.2]} 33. Qg4 {[%clk 0:00:24.6]}
33... Kg8 {[%clk 0:00:36.1]} 34. Qg3 {[%clk 0:00:25]} 1/2-1/2

[Event "Early-Titled-Tuesday-Blitz-April-16-2024"]
[Site "Chess.com"]
[Date "2024.04.16"]
[Round "4"]
[White "Vse_po_kaify"]
[Black "Durarbayli"]
[Result "0-1"]
[WhiteElo "2592"]
[BlackElo "2871"]
[TimeControl "180+1"]
[EndTime "8:38:51 PDT"]
[Termination "Durarbayli won by resignation"]

1. e4 {[%clk 0:02:59.1]} 1... c5 {[%clk 0:02:59.4]} 2. c4 {[%clk 0:02:58.9]}
2... Nc6 {[%clk 0:02:58.3]} 3. Nc3 {[%clk 0:02:59.5]} 3... g6 {[%clk 0:02:58.8]}
4. g3 {[%clk 0:03:00.1]} 4... Bg7 {[%clk 0:02:59.5]} 5. d3 {[%clk 0:03:00.9]}
5... e6 {[%clk 0:02:59.4]} 6. Bg2 {[%clk 0:03:01.5]} 6... Nge7 {[%clk
0:02:59.5]} 7. Nge2 {[%clk 0:03:02.1]} 7... O-O {[%clk 0:02:59.5]} 8. O-O {[%clk
0:03:02.7]} 8... d6 {[%clk 0:02:59.1]} 9. f4 {[%clk 0:03:03.3]} 9... a6 {[%clk
0:02:58.7]} 10. h3 {[%clk 0:03:03.9]} 10... Rb8 {[%clk 0:02:59]} 11. Rb1 {[%clk
0:03:04]} 11... b5 {[%clk 0:02:59.2]} 12. b3 {[%clk 0:03:04.2]} 12... Nd4 {[%clk
0:02:53]} 13. Be3 {[%clk 0:03:02.8]} 13... f5 {[%clk 0:02:48]} 14. Qd2 {[%clk
0:03:00.5]} 14... Bd7 {[%clk 0:02:41.1]} 15. Kh2 {[%clk 0:02:52.4]} 15... b4
{[%clk 0:02:37.1]} 16. Nd1 {[%clk 0:02:39.8]} 16... a5 {[%clk 0:02:37.6]} 17. g4
{[%clk 0:02:38.9]} 17... Nec6 {[%clk 0:02:29.9]} 18. Ng3 {[%clk 0:02:36.4]}
18... fxg4 {[%clk 0:02:07.9]} 19. hxg4 {[%clk 0:02:31.4]} 19... Qh4+ {[%clk
0:02:08.6]} 20. Bh3 {[%clk 0:02:31]} 20... Ne5 {[%clk 0:02:09.3]} 21. fxe5
{[%clk 0:02:10.9]} 21... Rxf1 {[%clk 0:02:02.5]} 22. Bxd4 {[%clk 0:02:10.9]}
22... Rf3 {[%clk 0:01:48.4]} 23. Qg2 {[%clk 0:01:55.9]} 23... Rxd3 {[%clk
0:01:40.5]} 24. Bf2 {[%clk 0:01:50.2]} 24... Bxe5 {[%clk 0:01:39]} 25. Ne3
{[%clk 0:01:48.8]} 25... Rf8 {[%clk 0:01:31.9]} 26. Rd1 {[%clk 0:01:47.1]} 26...
Rc3 {[%clk 0:00:56.7]} 27. Rd2 {[%clk 0:01:29.7]} 27... Bc6 {[%clk 0:00:56]} 28.
Nf1 {[%clk 0:01:23.6]} 28... Rcf3 {[%clk 0:00:50]} 29. Kh1 {[%clk 0:01:15.3]}
29... R8f4 {[%clk 0:00:38.2]} 30. Re2 {[%clk 0:01:13.6]} 30... Rxf2 {[%clk
0:00:23.8]} 31. Rxf2 {[%clk 0:01:10.4]} 31... Rxf2 {[%clk 0:00:24.7]} 32. Qxf2
{[%clk 0:01:10.3]} 32... Qxh3+ {[%clk 0:00:25.4]} 33. Kg1 {[%clk 0:01:08.2]}
33... Bd4 {[%clk 0:00:22]} 34. Ne3 {[%clk 0:01:08.1]} 34... Bxe4 {[%clk
0:00:21.6]} 35. Nxe4 {[%clk 0:00:55.7]} 35... Bxe3 {[%clk 0:00:20.6]} 36. Nf6+
{[%clk 0:00:56]} 36... Kh8 {[%clk 0:00:19.9]} 0-1

[Event "Early-Titled-Tuesday-Blitz-April-16-2024"]
[Site "Chess.com"]
[Date "2024.04.16"]
[Round "4"]
[White "kekic76"]
[Black "Itay121"]
[Result "0-1"]
[WhiteElo "2351"]
[BlackElo "2547"]
[TimeControl "180+1"]
[EndTime "8:38:56 PDT"]
[Termination "Itay121 won on time"]

1. d4 {[%clk 0:03:00.9]} 1... Nf6 {[%clk 0:02:59.7]} 2. c4 {[%clk 0:02:58.4]}
2... g6 {[%clk 0:02:54.7]} 3. Nc3 {[%clk 0:02:54.4]} 3... d5 {[%clk 0:02:55]} 4.
cxd5 {[%clk 0:02:49]} 4... Nxd5 {[%clk 0:02:55.9]} 5. e4 {[%clk 0:02:46.1]} 5...
Nxc3 {[%clk 0:02:55.9]} 6. bxc3 {[%clk 0:02:47]} 6... c5 {[%clk 0:02:56]} 7. Nf3
{[%clk 0:02:36.1]} 7... Bg7 {[%clk 0:02:55.1]} 8. Be3 {[%clk 0:02:35.4]} 8...
cxd4 {[%clk 0:02:53.4]} 9. Bxd4 {[%clk 0:02:26.8]} 9... O-O {[%clk 0:02:42.9]}
10. Bxg7 {[%clk 0:02:22.2]} 10... Kxg7 {[%clk 0:02:43.8]} 11. Be2 {[%clk
0:02:22.2]} 11... Nc6 {[%clk 0:02:40.2]} 12. O-O {[%clk 0:02:18.9]} 12... Bg4
{[%clk 0:02:36.1]} 13. h3 {[%clk 0:02:14.8]} 13... Bxf3 {[%clk 0:02:36]} 14.
Bxf3 {[%clk 0:02:15.7]} 14... e5 {[%clk 0:02:32]} 15. Qd5 {[%clk 0:02:13]} 15...
Qc7 {[%clk 0:02:26.1]} 16. Rab1 {[%clk 0:01:59.8]} 16... Rfd8 {[%clk 0:02:25.5]}
17. Qb5 {[%clk 0:01:58.6]} 17... Na5 {[%clk 0:02:13.2]} 18. c4 {[%clk
0:01:24.3]} 18... a6 {[%clk 0:02:00.9]} 19. Qb4 {[%clk 0:01:16.7]} 19... Nxc4
{[%clk 0:01:56.9]} 20. Qxb7 {[%clk 0:00:54.5]} 20... Qxb7 {[%clk 0:01:56.8]} 21.
Rxb7 {[%clk 0:00:55.4]} 21... Nd2 {[%clk 0:01:57.5]} 22. Rc1 {[%clk 0:00:50]}
22... Rac8 {[%clk 0:01:49.3]} 23. Rcc7 {[%clk 0:00:43.9]} 23... Rxc7 {[%clk
0:01:47.2]} 24. Rxc7 {[%clk 0:00:44.8]} 24... Rd4 {[%clk 0:01:44.5]} 25. Rc5
{[%clk 0:00:27.4]} 25... f6 {[%clk 0:01:32.7]} 26. Rc7+ {[%clk 0:00:26.6]} 26...
Kh6 {[%clk 0:01:33.2]} 27. Be2 {[%clk 0:00:20]} 27... Ra4 {[%clk 0:01:27.9]} 28.
Rc2 {[%clk 0:00:18.9]} 28... Nxe4 {[%clk 0:01:25.8]} 29. Bf3 {[%clk 0:00:17]}
29... Ng5 {[%clk 0:01:24.7]} 30. Be2 {[%clk 0:00:16.4]} 30... Ra3 {[%clk
0:01:24]} 31. h4 {[%clk 0:00:15.7]} 31... Ne4 {[%clk 0:01:21.5]} 32. Bf3 {[%clk
0:00:12.1]} 32... Nc3 {[%clk 0:01:19.6]} 33. g4 {[%clk 0:00:07.4]} 33... Nxa2
{[%clk 0:01:17.3]} 34. Kg2 {[%clk 0:00:04.7]} 34... Nc3 {[%clk 0:01:12.4]} 35.
Rb2 {[%clk 0:00:00.5]} 35... e4 {[%clk 0:01:11.7]} 0-1

[Event "Early-Titled-Tuesday-Blitz-April-16-2024"]
[Site "Chess.com"]
[Date "2024.04.16"]
[Round "4"]
[White "MdChess1734"]
[Black "SirStrateg"]
[Result "0-1"]
[WhiteElo "2369"]
[BlackElo "2635"]
[TimeControl "180+1"]
[EndTime "8:38:57 PDT"]
[Termination "SirStrateg won by resignation"]

1. e4 {[%clk 0:03:00.9]} 1... d6 {[%clk 0:03:00]} 2. d4 {[%clk 0:03:00]} 2...
Nf6 {[%clk 0:03:00.6]} 3. Nc3 {[%clk 0:02:57.9]} 3... c6 {[%clk 0:03:01.2]} 4.
Nf3 {[%clk 0:02:57.2]} 4... Bg4 {[%clk 0:03:01.1]} 5. h3 {[%clk 0:02:55.2]} 5...
Bh5 {[%clk 0:03:01.5]} 6. Be2 {[%clk 0:02:55.2]} 6... e6 {[%clk 0:03:01.6]} 7.
Be3 {[%clk 0:02:52]} 7... d5 {[%clk 0:03:01.9]} 8. e5 {[%clk 0:02:51.6]} 8...
Nfd7 {[%clk 0:03:02.3]} 9. O-O {[%clk 0:02:43.2]} 9... c5 {[%clk 0:03:02.7]} 10.
dxc5 {[%clk 0:02:43.5]} 10... Nc6 {[%clk 0:03:00.5]} 11. Bb5 {[%clk 0:02:39.1]}
11... Ndxe5 {[%clk 0:02:45.3]} 12. g4 {[%clk 0:02:30.5]} 12... Nxf3+ {[%clk
0:02:45.4]} 13. Qxf3 {[%clk 0:02:30.6]} 13... Bg6 {[%clk 0:02:46]} 14. Rfe1
{[%clk 0:02:30]} 14... a6 {[%clk 0:02:44.8]} 15. Ba4 {[%clk 0:02:26.9]} 15...
Be7 {[%clk 0:02:37.2]} 16. Bd4 {[%clk 0:02:22]} 16... O-O {[%clk 0:02:35.5]} 17.
Bxc6 {[%clk 0:02:22.2]} 17... bxc6 {[%clk 0:02:35.5]} 18. Re2 {[%clk 0:02:22]}
18... Rb8 {[%clk 0:02:25]} 19. b3 {[%clk 0:02:10.9]} 19... Rb4 {[%clk
0:02:08.4]} 20. Rd1 {[%clk 0:02:08.9]} 20... Qa5 {[%clk 0:01:57.9]} 21. Na4
{[%clk 0:02:08]} 21... Be4 {[%clk 0:01:51.6]} 22. Qc3 {[%clk 0:02:05.5]} 22...
Rxa4 {[%clk 0:01:44.8]} 23. bxa4 {[%clk 0:01:44.9]} 23... Qxc3 {[%clk
0:01:44.6]} 24. Bxc3 {[%clk 0:01:45.5]} 24... Bf3 {[%clk 0:01:45.4]} 25. Ree1
{[%clk 0:01:42.3]} 25... Bxd1 {[%clk 0:01:45.6]} 26. Rxd1 {[%clk 0:01:43]} 26...
Rb8 {[%clk 0:01:46.2]} 27. Bd4 {[%clk 0:01:40.4]} 27... f6 {[%clk 0:01:41.8]}
28. f4 {[%clk 0:01:39.9]} 28... Kf7 {[%clk 0:01:34.1]} 29. a3 {[%clk 0:01:38.5]}
29... h6 {[%clk 0:01:31.9]} 30. Re1 {[%clk 0:01:32.1]} 30... g5 {[%clk
0:01:30.1]} 31. fxg5 {[%clk 0:01:30.1]} 31... hxg5 {[%clk 0:01:30.4]} 32. Rf1
{[%clk 0:01:08.1]} 32... Kg6 {[%clk 0:01:25.1]} 33. Rf3 {[%clk 0:01:06]} 33...
e5 {[%clk 0:01:22.8]} 34. Bf2 {[%clk 0:01:05.7]} 34... Rb2 {[%clk 0:01:18.6]}
35. Rc3 {[%clk 0:00:29.8]} 35... Kf7 {[%clk 0:01:10.1]} 36. Rb3 {[%clk
0:00:27.7]} 36... Rxc2 {[%clk 0:01:02.5]} 37. Rb6 {[%clk 0:00:19]} 37... Rxc5
{[%clk 0:00:57.2]} 38. Bxc5 {[%clk 0:00:19.5]} 38... Bxc5+ {[%clk 0:00:57.2]}
0-1